bitfinex/quotes_ETHUSD_20250628
["timestamp","ask_amount","ask_price","bid_price","bid_amount"]
[1751132981908,0.745272,2447.2,2447.0,3.0019647]
[1751132982421,0.745272,2447.2,2446.9,8.608]
[1751132982798,13.49683486,2447.8,2447.1,0.06131909]
[1751132983000,2.45170142,2447.3,2447.1,0.06131909]
[1751132983320,2.451671,2447.4,2447.1,0.06131909]
[1751132983623,1.35018349,2447.7,2447.1,0.06131909]
[1751132983820,2.45609301,2447.9,2447.1,0.55]
[1751132984023,0.9658207,2447.6,2447.1,0.55]
[1751132984210,0.9658207,2447.6,2447.2,0.0601947]
[1751132984411,0.9658207,2447.6,2447.2,2.51194038]
[1751132984612,0.9658207,2447.6,2447.3,0.55]
[1751132984822,0.9658207,2447.6,2447.3,3.06183669]
[1751132984990,0.9658207,2447.6,2447.4,0.06018978]
[1751132985194,10.005,2447.9,2447.4,0.06018978]
[1751132985195,0.005,2447.9,2447.5,0.764]
[1751132985595,0.005,2447.9,2447.6,0.06018486]
[1751132986003,2.45128079,2447.7,2447.6,0.06018486]
[1751132986204,2.45122194,2447.8,2447.6,0.06018486]
[1751132986413,2.45609943,2447.9,2447.6,0.06018486]
[1751132986815,0.005,2447.9,2447.6,0.06018486]
[1751132987647,2.45610965,2447.9,2447.6,0.06018486]
[1751132987825,2.45128079,2447.7,2447.6,0.06018486]
[1751132988015,2.94202693,2447.7,2447.6,0.06018486]
[1751132988206,12.94202693,2447.7,2447.6,0.06018486]
[1751132988411,12.94202693,2447.7,2447.6,0.05518486]
[1751132988717,12.94202693,2447.7,2447.1,0.764]
[1751132988718,2.45140367,2447.6,2447.4,0.204]
[1751132989027,13.90789015,2447.7,2447.4,0.204]
[1751132989214,3.82322662,2447.6,2447.4,0.204]
[1751132989528,10.9658207,2447.7,2447.4,0.204]
[1751132989728,2.6601395,2447.9,2447.2,0.55]
[1751132989729,0.005,2447.9,2447.5,0.204]
[1751132990028,0.9658207,2447.6,2447.5,3.2054811]
[1751132990230,0.9658207,2447.6,2447.5,3.0014811]
[1751132990528,0.005,2447.9,2447.8,2.45118065]
[1751132990729,0.005,2447.9,2447.7,3.00126828]
[1751132990917,0.005,2447.9,2447.8,0.26030197]
[1751132991732,0.9708207,2447.9,2447.8,0.26030197]
[1751132992345,0.005,2447.9,2447.8,0.26030197]
[1751132992707,0.9708207,2447.9,2447.8,0.26030197]
[1751132992929,0.9708207,2447.9,2447.8,0.25582094]
[1751132993509,0.005,2447.9,2447.8,0.25582094]
[1751132994153,0.9708207,2447.9,2447.8,2.70700159]
[1751132994511,0.9708207,2447.9,2447.8,3.25700159]
[1751132994841,0.9708207,2447.9,2447.8,4.59172866]
[1751132995341,0.9708207,2447.9,2447.8,1.56972094]
[1751132995541,0.9708207,2447.9,2447.8,0.25582094]
[1751132995711,0.9708207,2447.9,2447.8,0.05182094]
[1751132995919,0.005,2447.9,2447.8,0.05182094]
[1751132996146,3.21778051,2447.9,2447.8,0.05182094]
[1751132996350,3.75505706,2447.9,2447.8,0.05182094]
[1751132996550,0.58727655,2447.9,2447.8,0.05182094]
[1751132996864,13.49683486,2448.3,2447.8,0.05182094]
[1751132996865,10.0,2448.4,2447.9,2.45100478]
[1751132997062,2.45068777,2448.3,2447.8,2.50297045]
[1751132997378,2.45078016,2448.2,2448.1,0.204]
[1751132997700,12.45071463,2448.3,2447.9,0.204]
[1751132997817,2.45078016,2448.2,2447.9,0.204]
[1751132998018,2.45088742,2448.1,2447.8,0.05182094]
[1751132998324,2.45108051,2447.9,2447.8,0.05182094]
[1751132998524,3.16488146,2447.9,2447.8,0.05182094]
[1751132998933,13.16488146,2447.9,2447.8,0.05182094]
[1751132999346,14.13070216,2447.9,2447.8,0.05182094]
[1751132999548,13.16488146,2447.9,2447.8,0.05182094]
[1751132999727,2.45158126,2447.4,2447.3,0.204]
[1751133000041,13.49683486,2447.6,2447.3,0.204]
[1751133000241,1.778,2447.7,2447.4,0.204]
[1751133000560,17.9798207,2447.9,2447.4,0.204]
[1751133000561,1.1698207,2447.9,2447.4,0.204]
[1751133000741,13.49683486,2448.3,2447.8,2.65517228]
[1751133000742,0.204,2448.2,2447.8,2.65517228]
[1751133000944,0.204,2448.2,2447.8,2.65515703]
[1751133001142,0.204,2448.2,2447.8,2.65511258]
[1751133001457,10.0,2448.1,2447.8,0.204]
[1751133001619,2.65479522,2448.2,2447.8,0.204]
[1751133001620,1.1698207,2448.2,2447.8,2.65510809]
[1751133001826,13.49683486,2448.6,2447.8,2.65510809]
[1751133001827,8.75478482,2448.7,2448.0,2.65495141]
[1751133002019,2.4503798,2448.6,2448.3,0.204]
[1751133002230,0.7594,2448.2,2447.8,0.204]
[1751133002476,0.7594,2448.2,2447.3,0.7526]
[1751133002477,16.91110249,2448.2,2447.7,0.204]
[1751133002766,2.45093102,2448.1,2447.7,0.204]
[1751133002950,10.0,2448.1,2447.7,0.204]
[1751133003158,1.11280372,2448.0,2447.3,3.20427607]
[1751133003363,2.45108167,2447.9,2447.6,0.204]
[1751133003875,3.56386562,2448.0,2447.6,0.204]
[1751133004170,4.52968632,2448.0,2447.6,0.204]
[1751133004376,2.45113134,2447.9,2447.6,0.204]
[1751133004579,3.5716478,2447.9,2447.6,0.204]
[1751133005173,4.5374685,2447.9,2447.6,0.204]
[1751133005733,2.08633716,2447.9,2447.6,0.204]
[1751133005929,12.45118511,2447.8,2447.6,0.204]
[1751133006130,2.45135687,2447.7,2447.1,2.45183244]
[1751133006358,2.45135687,2447.7,2446.9,1.778]
[1751133006359,10.0,2447.6,2447.3,0.204]
[1751133006563,10.0,2447.5,2447.3,0.204]
[1751133007069,12.45148705,2447.5,2447.3,0.204]
[1751133007465,10.0,2447.5,2447.3,0.204]
[1751133007765,10.0,2447.5,2447.0,2.4519494]
[1751133007766,10.204,2447.5,2447.1,0.204]
[1751133008061,10.0,2447.4,2447.1,0.204]
[1751133008264,10.0,2447.4,2446.7,1.778]
[1751133008265,12.45174684,2447.3,2446.7,4.23023898]
[1751133008434,2.65574684,2447.3,2446.9,0.204]
[1751133008858,0.204,2447.3,2446.9,0.704]
[1751133009063,0.204,2447.3,2446.9,2.65605649]
[1751133009262,0.204,2447.3,2447.0,2.4519715]
[1751133009467,16.07883486,2447.6,2447.0,2.4519715]
[1751133009468,0.9658207,2447.6,2447.0,0.7732]
[1751133009763,0.9658207,2447.6,2447.5,2.4514811]
[1751133009967,6.836,2448.1,2447.6,2.45133443]
[1751133010168,10.0,2448.0,2447.6,2.45133443]
[1751133010334,10.0,2448.0,2447.5,2.45147279]
[1751133010534,6.836,2448.1,2447.7,2.45126308]
[1751133010882,6.838,2448.3,2447.8,2.45117159]
[1751133011040,10.0,2448.2,2447.7,2.45123434]
[1751133011234,12.45078407,2448.2,2447.7,2.45123434]
[1751133011436,2.45099718,2448.0,2447.5,2.45146384]
[1751133011659,10.0,2448.0,2447.4,2.45152827]
[1751133011975,12.45107983,2448.0,2447.4,2.45152827]
[1751133012271,0.7901,2447.8,2447.2,1.827]
[1751133012637,0.7901,2447.8,2447.4,2.45151868]
[1751133013034,12.45105201,2448.0,2447.4,2.45151868]
[1751133013247,10.0,2448.3,2447.7,2.45118977]
[1751133013570,10.0,2448.1,2447.6,2.45132734]
[1751133013749,10.0,2448.1,2447.2,2.6417]
[1751133013750,2.45099893,2448.0,2447.2,2.6417]
[1751133013945,12.45090562,2448.1,2447.5,2.45138391]
[1751133014150,2.45099229,2448.0,2447.5,2.45138391]
[1751133014350,1.24509923,2447.9,2447.5,2.45138391]
[1751133014581,2.21091993,2447.9,2447.5,2.45138391]
[1751133014750,4.66200712,2447.9,2447.4,2.45149239]
[1751133014951,10.7743,2447.8,2447.4,2.45156819]
[1751133015247,11.51745914,2447.8,2447.3,2.4516332]
[1751133015464,13.96870865,2447.8,2447.3,2.4516332]
[1751133015659,12.48327984,2447.8,2447.5,2.45145587]
[1751133015972,12.48327984,2447.8,2447.1,0.55]
[1751133015973,11.51745914,2447.8,2447.6,2.45136551]
[1751133016180,0.7743,2448.1,2447.7,2.45123159]
[1751133016360,10.0,2448.0,2447.7,2.45121438]
[1751133017649,10.9658207,2448.0,2447.7,2.4512262]
[1751133018061,10.0,2448.0,2447.7,2.4512262]
[1751133018369,13.41686907,2448.0,2447.4,2.45151786]
[1751133018883,13.41686907,2448.0,2447.3,2.45168144]
[1751133018884,0.9658207,2448.0,2447.9,3.24358051]
[1751133019173,0.9658207,2448.0,2447.9,3.81305499]
[1751133019477,0.9658207,2448.0,2447.9,0.204]
[1751133019776,0.9658207,2448.0,2447.9,2.45108051]
[1751133019939,0.9658207,2448.0,2447.9,2.65508051]
[1751133020372,21.36158628,2448.4,2447.9,2.65508051]
[1751133020893,21.36158628,2448.4,2447.2,2.45177175]
[1751133020894,1.7728207,2448.0,2447.3,0.7925]
[1751133021039,2.65523175,2447.8,2447.4,0.204]
[1751133021668,12.45130705,2447.7,2447.4,0.204]
[1751133021839,12.45130705,2447.7,2447.2,2.45174945]
[1751133021840,10.0,2447.7,2447.2,2.45169172]
[1751133022174,0.204,2447.6,2447.3,2.45162886]
[1751133022378,0.204,2447.6,2447.2,2.65572076]
[1751133022878,1.1698207,2447.6,2447.2,2.65572076]
[1751133023074,1.1698207,2447.6,2447.2,2.6557591]
[1751133023382,4.79848538,2447.6,2447.2,0.204]
[1751133023555,10.807,2447.5,2447.2,0.204]
[1751133023757,10.807,2447.5,2446.9,2.45203165]
[1751133023758,0.204,2447.3,2446.9,0.204]
[1751133024080,0.204,2447.3,2446.6,2.45234964]
[1751133024081,0.204,2447.3,2446.6,2.65633951]
[1751133024082,0.204,2447.1,2446.6,2.65633951]
[1751133024252,3.71192937,2447.1,2446.6,0.204]
[1751133024441,0.807,2447.0,2446.6,2.6563803]
[1751133024641,0.807,2447.0,2446.7,2.45219723]
[1751133024850,1.26003811,2447.1,2446.6,2.65633296]
[1751133025070,0.745272,2447.0,2446.6,2.65633296]
[1751133025276,0.745272,2447.0,2446.7,2.45226539]
[1751133025478,0.745272,2447.0,2446.3,0.002]
[1751133025479,0.745272,2447.0,2446.9,2.45208222]
[1751133025846,10.0,2447.2,2446.9,2.45208222]
[1751133026046,0.204,2447.3,2446.9,2.45208222]
[1751133026250,0.204,2447.3,2447.1,2.45186187]
[1751133026662,0.745272,2447.2,2447.1,2.45186187]
[1751133026865,11.03884352,2447.5,2447.1,2.45186187]
[1751133027051,1.32584352,2447.5,2446.9,2.45205471]
[1751133027257,0.745272,2447.2,2447.0,0.55]
[1751133027591,0.745272,2447.2,2447.1,2.45188181]
[1751133027879,0.745272,2447.2,2447.1,3.20588181]
[1751133028054,10.0,2447.7,2447.5,2.45142981]
[1751133028254,0.9763,2447.8,2447.3,2.45164494]
[1751133028454,0.2205487,2447.6,2447.4,2.655549]
[1751133028660,0.2205487,2447.6,2447.4,0.204]
[1751133028851,0.9763,2447.8,2447.4,0.204]
[1751133029048,0.9763,2447.8,2447.4,2.65556586]
[1751133029259,0.9763,2447.8,2447.5,2.45146864]
[1751133029665,0.9763,2447.8,2447.4,2.65554623]
[1751133029872,0.9763,2447.8,2447.4,2.65552882]
[1751133029873,1.9421207,2447.8,2447.4,2.65552882]
[1751133030066,0.9763,2447.8,2447.4,2.65552882]
[1751133030273,1.9421207,2447.8,2447.4,2.65552882]
[1751133030693,0.9763,2447.8,2447.4,2.65552882]
[1751133031198,0.9763,2447.8,2447.5,2.45148101]
[1751133031353,8.69,2447.9,2447.5,2.45148101]
[1751133031555,8.69,2447.9,2447.6,0.204]
[1751133032369,10.0,2447.8,2447.6,0.204]
[1751133032990,10.9658207,2447.8,2447.6,0.204]
[1751133033232,10.0,2447.8,2447.6,0.204]
[1751133035389,10.9658207,2447.8,2447.6,0.204]
[1751133036512,0.204,2448.0,2447.6,2.65534077]
[1751133036696,10.9658207,2447.8,2447.6,2.65534077]
[1751133036905,0.9658207,2447.8,2447.6,2.65534077]
[1751133037217,0.9658207,2447.8,2447.7,2.45128079]
[1751133037722,1.827,2448.3,2447.9,2.45106906]
[1751133037888,0.9658207,2447.8,2447.7,1.3407]
[1751133038088,7.8341,2448.4,2448.0,0.204]
[1751133038296,7.8341,2448.4,2448.0,2.45098039]
[1751133038610,8.80021,2448.4,2448.1,2.45087446]
[1751133038812,4.18507465,2448.7,2448.4,2.4505224]
[1751133038813,3.56178482,2448.7,2448.4,2.4505224]
[1751133039027,3.56178482,2448.7,2448.3,2.65465531]
[1751133039028,10.41278482,2448.7,2448.3,2.65465531]
[1751133039203,10.41278482,2448.7,2448.3,2.65463035]
[1751133039407,10.0,2448.6,2448.3,2.65463035]
[1751133039631,10.0,2448.6,2448.4,2.450567]
[1751133039825,10.0,2448.6,2448.3,2.65462718]
[1751133040135,5.64960332,2448.6,2448.3,0.204]
[1751133040295,10.0,2448.5,2448.1,2.45081355]
[1751133040496,12.45054838,2448.5,2448.1,0.204]
[1751133040695,11.1698207,2448.6,2448.1,0.204]
[1751133040897,11.1698207,2448.6,2448.2,2.45075967]
[1751133041237,10.0,2448.6,2448.4,2.45056837]
[1751133041419,10.0,2448.6,2448.4,0.204]
[1751133041729,10.0,2448.6,2448.5,2.45047988]
[1751133041896,1.73478482,2448.7,2448.5,2.45041851]
[1751133042295,1.73478482,2448.7,2448.4,0.204]
[1751133042523,10.0,2448.6,2448.4,0.204]
[1751133042723,10.07459317,2448.5,2447.8,3.24181724]
[1751133042921,0.204,2448.3,2447.8,2.65508521]
[1751133043122,12.65468082,2448.3,2447.8,2.65508521]
[1751133043330,1.1698207,2448.3,2447.9,2.45101126]
[1751133043641,0.9658207,2448.3,2448.0,2.45096643]
[1751133043843,0.9658207,2448.3,2448.0,2.65496643]
[1751133044636,0.9821,2448.5,2448.0,0.9947]
[1751133044637,2.65450617,2448.5,2448.0,0.9947]
[1751133044846,12.71604905,2448.4,2448.0,0.204]
[1751133045014,10.26545062,2448.4,2448.0,0.204]
[1751133045208,3.22879746,2448.3,2448.0,0.204]
[1751133045402,3.43279746,2448.3,2447.8,2.6551209]
[1751133045601,12.45088136,2448.1,2447.5,2.45141208]
[1751133045837,12.45088136,2448.1,2447.7,0.204]
[1751133045838,10.204,2448.1,2447.7,0.204]
[1751133046044,12.6549055,2448.1,2447.7,0.204]
[1751133046207,10.204,2448.1,2447.7,2.65526622]
[1751133047035,0.7781,2448.6,2448.0,2.45098039]
[1751133047331,1.73478482,2448.7,2448.4,2.45054154]
[1751133047529,1.73478482,2448.7,2448.4,3.40964154]
[1751133047853,1.73478482,2448.7,2448.4,0.9591]
[1751133048014,1.73478482,2448.7,2448.4,3.4096789]
[1751133048215,1.73478482,2448.7,2448.5,2.45040241]
[1751133048411,1.73478482,2448.7,2448.4,3.40963653]
[1751133048719,10.0,2448.6,2448.5,2.45043627]
[1751133049248,10.0,2448.6,2448.4,3.40962787]
[1751133049417,2.70060552,2448.7,2448.4,3.40962787]
[1751133049418,1.73478482,2448.7,2448.4,3.40962787]
[1751133049618,10.0,2448.6,2448.4,0.9591]
[1751133049831,10.0,2448.6,2448.4,0.204]
[1751133050033,1.73478482,2448.7,2448.4,0.204]
[1751133050229,10.0,2448.6,2448.4,0.204]
[1751133050438,11.1698207,2448.6,2448.2,2.65473319]
[1751133050652,13.6202513,2448.6,2448.2,0.204]
[1751133050845,12.6544306,2448.6,2448.2,0.204]
[1751133051040,2.45056195,2448.5,2447.9,2.45103014]
[1751133051338,2.45056195,2448.5,2448.1,2.45080797]
[1751133051339,0.8227,2448.4,2448.1,2.45080797]
[1751133051843,0.8227,2448.4,2448.0,2.65493747]
[1751133053037,1.7885207,2448.4,2448.0,0.204]
[1751133053238,0.8227,2448.4,2448.0,2.65495866]
[1751133053759,1.7885207,2448.4,2448.0,2.65495866]
[1751133054129,12.58291934,2448.4,2447.7,2.45123826]
[1751133054460,12.65479858,2448.2,2447.8,0.204]
[1751133054760,12.65483037,2448.2,2447.8,0.204]
[1751133055438,10.204,2448.2,2447.8,0.204]
[1751133055640,12.65479431,2448.2,2447.8,0.204]
[1751133056454,13.62061501,2448.2,2447.8,0.204]
[1751133056765,12.65479431,2448.2,2447.8,0.204]
[1751133057258,19.48379431,2448.2,2447.8,0.204]
[1751133057564,20.44961501,2448.2,2447.8,0.204]
[1751133057740,19.48379431,2448.2,2447.8,0.204]
[1751133058844,2.45090296,2448.1,2447.8,0.204]
[1751133059359,12.45108051,2447.9,2447.4,2.45152474]
[1751133059663,10.0,2447.9,2447.6,0.204]
[1751133060160,10.9658207,2447.9,2447.6,2.65533778]
[1751133060368,10.9658207,2447.9,2447.7,2.45118375]
[1751133060369,0.9658207,2447.9,2447.7,2.45118375]
[1751133060561,0.9658207,2447.9,2447.6,2.6552966]
[1751133061065,0.9658207,2447.9,2447.6,2.6553348]
[1751133061576,0.9658207,2447.9,2447.7,2.451272]
[1751133061770,0.9658207,2447.9,2447.8,2.45118065]
[1751133062269,0.9658207,2447.9,2447.7,2.45124069]
[1751133062647,0.204,2448.0,2447.7,2.45124069]
[1751133063475,0.204,2448.0,2447.6,2.6553508]
[1751133063680,0.204,2448.0,2447.6,0.204]
[1751133063681,2.65500062,2448.0,2447.6,0.204]
[1751133063840,3.2334982,2447.9,2447.6,0.204]
[1751133064045,3.2334982,2447.9,2447.3,3.21611125]
[1751133064046,2.45119578,2447.8,2447.3,3.21611125]
[1751133064245,2.65519578,2447.8,2447.4,0.204]
[1751133064881,12.45134038,2447.7,2447.4,0.204]
[1751133065190,12.45134038,2447.7,2447.2,2.45175245]
[1751133065191,2.65538361,2447.6,2447.2,0.204]
[1751133065761,0.204,2447.6,2447.3,2.45163773]
[1751133066090,0.9658207,2447.6,2447.4,2.65552759]
[1751133066284,10.0,2447.7,2447.4,2.65552759]
[1751133066588,0.9658207,2447.6,2447.4,2.65552759]
[1751133066766,0.9658207,2447.6,2447.4,0.204]
[1751133067083,0.9658207,2447.6,2447.4,2.65556461]
[1751133067254,0.9658207,2447.6,2447.3,2.45163098]
[1751133067593,0.9658207,2447.6,2447.1,2.45184959]
[1751133067594,10.0,2447.7,2447.4,2.45156303]
[1751133068357,10.0,2447.8,2447.6,2.45137517]
[1751133068563,2.45097346,2448.1,2447.6,2.45137517]
[1751133068564,0.9658207,2447.7,2447.6,2.45137517]
[1751133068967,0.9658207,2447.7,2447.6,3.01784674]
[1751133069791,10.0,2448.2,2447.8,2.45115395]
[1751133070176,0.9658207,2447.7,2447.6,2.45137517]
[1751133070981,10.0,2448.2,2447.8,2.45109521]
[1751133072195,10.9658207,2448.2,2447.8,2.45109521]
[1751133072397,0.9658207,2448.2,2448.0,2.45090333]
[1751133073797,0.9658207,2448.2,2447.9,3.21285982]
[1751133073998,0.9658207,2448.2,2447.8,2.45115406]
[1751133073999,0.9658207,2448.2,2447.8,2.45113258]
[1751133074399,10.9658207,2448.2,2447.8,2.45113258]
[1751133074697,0.9658207,2448.2,2447.7,3.2129884]
[1751133074880,0.9658207,2448.2,2447.8,2.45116684]
[1751133075301,0.9658207,2448.2,2447.6,4.26335363]
[1751133075302,1.36911563,2448.2,2447.6,1.812]
[1751133075502,1.36911563,2448.2,2447.6,2.45131344]
[1751133075503,2.45089141,2448.1,2447.6,2.45131344]
[1751133075678,12.33493633,2448.2,2447.4,0.7618]
[1751133075880,10.0,2447.9,2447.2,0.7618]
[1751133076079,2.45152752,2447.5,2447.0,4.26391497]
[1751133076282,12.45152752,2447.5,2447.0,4.26391497]
[1751133076602,2.45152752,2447.5,2447.0,4.26391497]
[1751133076788,2.45164693,2447.4,2446.8,0.7618]
[1751133076989,10.0,2447.3,2446.9,2.45206999]
[1751133077204,10.204,2447.3,2446.8,3.41792501]
[1751133077505,12.65568546,2447.3,2446.8,3.41792501]
[1751133077810,12.6557301,2447.3,2446.8,0.204]
[1751133078021,12.6557301,2447.3,2446.8,2.65617899]
[1751133078385,12.6557301,2447.3,2446.8,0.204]
[1751133078584,12.6557301,2447.3,2446.8,2.65617329]
[1751133078788,12.6557301,2447.3,2446.8,0.204]
[1751133079023,10.204,2447.3,2446.8,2.65616052]
[1751133079228,12.65569131,2447.3,2446.8,2.65616052]
[1751133080618,10.204,2447.3,2446.9,2.45202587]
[1751133080804,12.65568617,2447.3,2446.8,2.65613204]
[1751133081630,10.204,2447.3,2446.8,2.65613204]
[1751133081926,12.6557192,2447.3,2446.8,0.204]
[1751133082528,3.24129007,2447.2,2446.8,0.204]
[1751133082695,0.7895,2447.2,2446.8,0.204]
[1751133083014,0.7895,2447.2,2446.8,2.65617041]
[1751133083595,2.45189821,2447.1,2446.8,0.204]
[1751133083800,10.0,2447.1,2446.7,0.002]
[1751133084033,12.65593074,2447.1,2446.7,0.002]
[1751133084325,13.40120274,2447.1,2446.7,0.002]
[1751133084492,2.45199179,2447.0,2446.7,0.002]
[1751133085094,2.4520937,2446.9,2446.7,0.002]
[1751133085340,0.204,2446.9,2446.7,0.002]
[1751133086215,0.949272,2446.9,2446.7,0.002]
[1751133086414,3.40135463,2446.9,2446.7,0.002]
[1751133086600,3.24168244,2446.8,2446.7,0.002]
[1751133086920,0.9935,2446.8,2446.7,0.002]
[1751133087125,4.03239807,2446.8,2446.7,0.002]
[1751133088050,4.77767007,2446.8,2446.7,0.002]
[1751133088824,2.32548763,2446.8,2446.7,0.002]
[1751133089126,4.19095444,2446.8,2446.7,0.002]
[1751133089323,1.738772,2446.8,2446.7,0.002]
[1751133089858,3.44568244,2446.8,2446.7,0.002]
[1751133090948,4.19095444,2446.8,2446.7,0.002]
[1751133091246,3.44568244,2446.8,2446.7,0.002]
[1751133091450,16.89773741,2446.8,2446.7,0.002]
[1751133092117,27.64300941,2446.8,2446.7,0.002]
[1751133092317,26.89773741,2446.8,2446.7,0.002]
[1751133093444,28.71073741,2446.8,2446.7,0.002]
[1751133093651,35.49173741,2446.8,2446.7,0.002]
[1751133094737,66.23700941,2446.8,2446.7,0.002]
[1751133095919,65.49173741,2446.8,2446.7,0.002]
[1751133096118,66.23700941,2446.8,2446.7,0.002]
[1751133097022,65.49173741,2446.8,2446.7,0.002]
[1751133097347,66.23700941,2446.8,2446.7,0.002]
[1751133098159,65.49173741,2446.8,2446.7,0.002]
[1751133098545,35.49173741,2446.8,2446.7,0.002]
[1751133099147,16.00395444,2446.8,2446.7,0.002]
[1751133099346,22.03068244,2446.8,2446.7,0.002]
[1751133100419,22.77595444,2446.8,2446.7,0.002]
[1751133101433,22.03068244,2446.8,2446.7,0.002]
[1751133101837,22.77595444,2446.8,2446.7,0.002]
[1751133102871,22.03068244,2446.8,2446.7,0.002]
[1751133103386,15.25868244,2446.8,2446.7,0.002]
[1751133103752,16.00395444,2446.8,2446.7,0.002]
[1751133104082,15.25868244,2446.8,2446.7,0.002]
[1751133105394,16.00395444,2446.8,2446.7,0.002]
[1751133106255,15.25868244,2446.8,2446.7,0.002]
[1751133106945,16.00395444,2446.8,2446.7,0.002]
[1751133109160,46.00395444,2446.8,2446.7,0.002]
[1751133109775,45.25868244,2446.8,2446.7,0.002]
[1751133110176,43.20448266,2446.7,2446.6,0.002]
[1751133110358,71.33253763,2446.7,2446.6,0.002]
[1751133110554,26.65683835,2446.4,2446.3,0.002]
[1751133110754,33.41183835,2446.4,2446.3,0.002]
[1751133111960,34.15711035,2446.4,2446.3,0.002]
[1751133112166,33.41183835,2446.4,2446.3,0.002]
[1751133112351,34.15711035,2446.4,2446.3,0.002]
[1751133113156,27.40211035,2446.4,2446.3,0.002]
[1751133113468,21.74278338,2446.4,2446.3,0.002]
[1751133113786,22.48805538,2446.4,2446.3,0.002]
[1751133113989,22.43805538,2446.4,2446.3,0.002]
[1751133114491,21.69278338,2446.4,2446.3,0.002]
[1751133114963,13.15478338,2446.4,2446.3,0.002]
[1751133115164,16.748,2446.4,2446.3,0.002]
[1751133115499,17.493272,2446.4,2446.3,0.002]
[1751133115693,19.94585538,2446.4,2446.3,0.002]
[1751133115890,0.7522,2446.6,2446.3,0.002]
[1751133116099,0.204,2446.5,2446.3,0.32256896]
[1751133116302,4.23921214,2446.8,2446.3,2.45461709]
[1751133116503,6.953,2446.7,2446.3,2.45461709]
[1751133116667,0.745272,2446.4,2446.3,0.002]
[1751133116874,10.0,2446.4,2446.3,0.002]
[1751133117878,6.952,2446.5,2446.3,0.002]
[1751133118117,10.745272,2446.4,2446.3,0.002]
[1751133118285,16.952,2446.5,2446.3,0.002]
[1751133119687,20.14979072,2446.5,2446.3,0.002]
[1751133120304,16.952,2446.5,2446.3,0.002]
[1751133120894,17.697272,2446.5,2446.3,0.002]
[1751133121096,20.14975638,2446.5,2446.3,0.002]
[1751133121300,2.45258338,2446.4,2446.3,0.002]
[1751133122214,19.98018341,2446.5,2446.3,0.002]
[1751133122215,17.5277,2446.5,2446.3,0.002]
[1751133122416,16.748,2446.5,2446.3,0.002]
[1751133122582,19.20050817,2446.5,2446.3,0.002]
[1751133122793,2.45258338,2446.4,2446.3,0.002]
[1751133123676,10.0,2446.5,2446.3,0.002]
[1751133123883,7.487272,2446.4,2446.3,0.002]
[1751133124090,17.484272,2446.4,2446.3,0.002]
[1751133124290,10.745272,2446.4,2446.3,0.7877]
[1751133124909,12.45258338,2446.4,2446.3,0.002]
[1751133125205,10.745272,2446.4,2446.3,0.002]
[1751133125576,10.745272,2446.4,2446.3,3.24038364]
[1751133125781,0.745272,2446.4,2446.3,5.901422]
[1751133126178,2.45183019,2447.2,2446.6,2.45232537]
[1751133126378,12.45183019,2447.2,2446.6,2.45232537]
[1751133126579,12.45183019,2447.2,2446.7,2.45223289]
[1751133126880,19.19483019,2447.2,2446.7,2.45223289]
[1751133127081,10.0,2447.2,2446.8,3.23786275]
[1751133127411,16.742,2447.2,2446.8,0.7857]
[1751133128217,19.93909274,2447.2,2446.8,0.7857]
[1751133128393,19.19382074,2447.2,2446.8,0.7857]
[1751133128910,6.739,2447.4,2446.9,2.45202982]
[1751133129111,6.739,2447.4,2447.0,2.4519737]
[1751133129112,6.74,2447.4,2447.0,2.4519737]
[1751133129281,0.745272,2447.2,2447.0,2.4519737]
[1751133129699,9.1915319,2447.5,2446.8,3.80684079]
[1751133129700,12.45158511,2447.4,2446.9,2.45205698]
[1751133129907,12.45158511,2447.4,2446.8,1.35473107]
[1751133129908,2.45198209,2447.0,2446.8,0.7857]
[1751133130212,10.0,2446.9,2446.4,0.7822]
[1751133130377,2.45218714,2446.8,2446.4,0.7822]
[1751133130584,12.45210763,2446.9,2446.4,0.7822]
[1751133130784,12.45210852,2446.9,2446.4,0.7822]
[1751133130984,2.45227241,2446.8,2446.4,0.7822]
[1751133131385,2.45229945,2446.7,2446.4,0.7822]
[1751133131585,12.45210852,2446.9,2446.4,0.7822]
[1751133131586,2.45245438,2446.6,2446.4,0.7822]
[1751133131781,2.45251787,2446.5,2446.3,0.002]
[1751133132098,0.745272,2446.6,2446.3,0.002]
[1751133132303,10.0,2446.9,2446.3,0.002]
[1751133132500,13.45205497,2447.0,2446.3,0.002]
[1751133132501,12.45234421,2446.7,2446.3,0.002]
[1751133132689,2.45248313,2446.5,2446.3,0.002]
[1751133132890,25.90463835,2446.4,2446.3,0.002]
[1751133133104,33.40533835,2446.4,2446.3,0.002]
[1751133134727,34.15061035,2446.4,2446.3,0.002]
[1751133135529,34.15161035,2446.4,2446.3,0.002]
[1751133135694,33.40633835,2446.4,2446.3,0.002]
[1751133136604,34.15161035,2446.4,2446.3,0.002]
[1751133137931,2.45318505,2445.8,2445.7,0.002]
[1751133138096,3.0190835,2445.8,2445.7,0.002]
[1751133138730,13.0190835,2445.8,2445.7,0.002]
[1751133139423,13.7643555,2445.8,2445.7,0.002]
[1751133140417,13.0190835,2445.8,2445.7,0.002]
[1751133141245,13.7643555,2445.8,2445.7,0.002]
[1751133141444,20.5003555,2445.8,2445.7,0.002]
[1751133141644,19.7550835,2445.8,2445.7,0.002]
[1751133141856,20.5003555,2445.8,2445.7,0.002]
[1751133142206,13.7643555,2445.8,2445.7,0.002]
[1751133142455,20.5013555,2445.8,2445.7,0.002]
[1751133142811,19.7560835,2445.8,2445.7,0.002]
[1751133143115,20.5013555,2445.8,2445.7,0.002]
[1751133143910,19.7560835,2445.8,2445.7,0.002]
[1751133144845,2.45358632,2445.4,2445.3,0.002]
[1751133145007,25.90564129,2445.4,2445.3,0.002]
[1751133146130,32.64164129,2445.4,2445.3,0.002]
[1751133146721,10.0,2445.4,2445.3,0.002]